[Event "Early-Titled-Tuesday-Blitz-January-30-2024"]
[Site "Chess.com"]
[Date "2024.01.30"]
[Round "11"]
[White "gshwbedhkhd"]
[Black "Legendinunknown"]
[Result "0-1"]
[WhiteElo "2619"]
[BlackElo "2832"]
[TimeControl "180+1"]
[EndTime "10:13:03 PST"]
[Termination "Legendinunknown won on time"]

1. e4 {[%clk 0:02:57.5]} 1... e5 {[%clk 0:02:57.7]} 2. Nf3 {[%clk 0:02:57.6]}
2... Nc6 {[%clk 0:02:57.2]} 3. Nc3 {[%clk 0:02:58.2]} 3... Nf6 {[%clk
0:02:56.3]} 4. a3 {[%clk 0:02:58.7]} 4... d6 {[%clk 0:02:54.5]} 5. d4 {[%clk
0:02:57.9]} 5... exd4 {[%clk 0:02:55.4]} 6. Nxd4 {[%clk 0:02:58.7]} 6... g6
{[%clk 0:02:55.9]} 7. h3 {[%clk 0:02:57.4]} 7... Bg7 {[%clk 0:02:55.9]} 8. Be3
{[%clk 0:02:57.2]} 8... O-O {[%clk 0:02:55.5]} 9. Qd2 {[%clk 0:02:43.3]} 9...
Re8 {[%clk 0:02:41.3]} 10. f3 {[%clk 0:02:39.4]} 10... d5 {[%clk 0:02:39.5]} 11.
Nxc6 {[%clk 0:02:38.4]} 11... bxc6 {[%clk 0:02:37.7]} 12. O-O-O {[%clk
0:02:39.3]} 12... Rb8 {[%clk 0:02:35.2]} 13. Bxa7 {[%clk 0:02:31.9]} 13... Rb7
{[%clk 0:02:34]} 14. Bc5 {[%clk 0:02:29]} 14... Be6 {[%clk 0:02:32.2]} 15. Ba6
{[%clk 0:02:21.2]} 15... Rb8 {[%clk 0:02:27.9]} 16. Rhe1 {[%clk 0:02:20.2]}
16... Nh5 {[%clk 0:02:13.8]} 17. g4 {[%clk 0:02:10.5]} 17... Nf6 {[%clk
0:02:04.4]} 18. Qf2 {[%clk 0:01:57.4]} 18... Nd7 {[%clk 0:01:54.3]} 19. Bd4
{[%clk 0:01:55.5]} 19... Bxd4 {[%clk 0:01:53.9]} 20. Rxd4 {[%clk 0:01:50.1]}
20... c5 {[%clk 0:01:54.3]} 21. Rxd5 {[%clk 0:01:48.6]} 21... Bxd5 {[%clk
0:01:53.5]} 22. Nxd5 {[%clk 0:01:49.5]} 22... Nb6 {[%clk 0:01:53.2]} 23. Nc3
{[%clk 0:01:43.8]} 23... Qf6 {[%clk 0:01:47.6]} 24. f4 {[%clk 0:01:37.1]} 24...
Na4 {[%clk 0:01:44.5]} 25. Nxa4 {[%clk 0:01:31.7]} 25... Qxa6 {[%clk 0:01:43.7]}
26. Nxc5 {[%clk 0:01:32]} 26... Qc4 {[%clk 0:01:42.2]} 27. e5 {[%clk 0:01:22.7]}
27... Red8 {[%clk 0:01:35.4]} 28. e6 {[%clk 0:01:06.6]} 28... fxe6 {[%clk
0:01:32.3]} 29. Qe3 {[%clk 0:00:59.1]} 29... Rd6 {[%clk 0:01:27.7]} 30. Ne4
{[%clk 0:00:52.4]} 30... Rdd8 {[%clk 0:01:14.2]} 31. Qc3 {[%clk 0:00:46.4]}
31... Qxc3 {[%clk 0:00:53.8]} 32. Nxc3 {[%clk 0:00:43.9]} 32... Kf7 {[%clk
0:00:53.5]} 33. Ne4 {[%clk 0:00:42.7]} 33... h6 {[%clk 0:00:53.3]} 34. Nc5
{[%clk 0:00:29]} 34... Rd5 {[%clk 0:00:47.1]} 35. b4 {[%clk 0:00:28.4]} 35...
Rd4 {[%clk 0:00:41.7]} 36. Nxe6 {[%clk 0:00:22.8]} 36... Rc4 {[%clk 0:00:39.1]}
37. Kb2 {[%clk 0:00:17.8]} 37... Re8 {[%clk 0:00:37.7]} 38. f5 {[%clk
0:00:14.3]} 38... gxf5 {[%clk 0:00:37.7]} 39. gxf5 {[%clk 0:00:15.2]} 39... Rh4
{[%clk 0:00:36.2]} 40. Re3 {[%clk 0:00:13.6]} 40... Rf4 {[%clk 0:00:29.3]} 41.
Rc3 {[%clk 0:00:13.5]} 41... Rxf5 {[%clk 0:00:27.7]} 42. Nxc7 {[%clk 0:00:13.7]}
42... Rc8 {[%clk 0:00:26.3]} 43. a4 {[%clk 0:00:14]} 43... Ke7 {[%clk 0:00:25]}
44. b5 {[%clk 0:00:14.2]} 44... Kd7 {[%clk 0:00:24.9]} 45. Na6 {[%clk
0:00:08.1]} 45... Rxc3 {[%clk 0:00:22.4]} 46. Kxc3 {[%clk 0:00:09]} 46... Rf3+
{[%clk 0:00:22.6]} 47. Kd4 {[%clk 0:00:09.5]} 47... Rxh3 {[%clk 0:00:22.5]} 48.
a5 {[%clk 0:00:07.1]} 48... Ra3 {[%clk 0:00:21.6]} 49. Nc5+ {[%clk 0:00:06]}
49... Kc7 {[%clk 0:00:20.9]} 50. a6 {[%clk 0:00:05.1]} 50... Kb6 {[%clk
0:00:20.5]} 51. c4 {[%clk 0:00:04.8]} 51... h5 {[%clk 0:00:20.5]} 52. Nd7+
{[%clk 0:00:04.8]} 52... Kc7 {[%clk 0:00:20.9]} 53. Nf6 {[%clk 0:00:02.8]} 53...
h4 {[%clk 0:00:21.3]} 54. Kc5 {[%clk 0:00:03.3]} 54... h3 {[%clk 0:00:21.3]} 55.
b6+ {[%clk 0:00:03.7]} 55... Kc8 {[%clk 0:00:21.5]} 56. b7+ {[%clk 0:00:02.6]}
56... Kc7 {[%clk 0:00:21.4]} 57. Nd7 {[%clk 0:00:03]} 57... Rb3 {[%clk
0:00:20.7]} 58. a7 {[%clk 0:00:02]} 58... Kxb7 {[%clk 0:00:20.3]} 0-1

[Event "Early-Titled-Tuesday-Blitz-January-30-2024"]
[Site "Chess.com"]
[Date "2024.01.30"]
[Round "11"]
[White "Kildepiotr"]
[Black "MatthewG-p4p"]
[Result "1-0"]
[WhiteElo "2699"]
[BlackElo "2860"]
[TimeControl "180+1"]
[EndTime "10:13:04 PST"]
[Termination "Kildepiotr won by checkmate"]

1. Nf3 {[%clk 0:03:00.9]} 1... c5 {[%clk 0:02:59.1]} 2. e4 {[%clk 0:02:57.7]}
2... g6 {[%clk 0:02:58.4]} 3. c3 {[%clk 0:02:57.4]} 3... Bg7 {[%clk 0:02:58.3]}
4. h3 {[%clk 0:02:56.6]} 4... a6 {[%clk 0:02:41.2]} 5. d4 {[%clk 0:02:56.3]}
5... cxd4 {[%clk 0:02:41.4]} 6. cxd4 {[%clk 0:02:57.2]} 6... d5 {[%clk
0:02:42.1]} 7. e5 {[%clk 0:02:57.7]} 7... Nc6 {[%clk 0:02:42.4]} 8. Nc3 {[%clk
0:02:54.9]} 8... f6 {[%clk 0:02:42.6]} 9. exf6 {[%clk 0:02:54.7]} 9... Nxf6
{[%clk 0:02:43.5]} 10. Bd3 {[%clk 0:02:54]} 10... O-O {[%clk 0:02:44.2]} 11. O-O
{[%clk 0:02:53.7]} 11... Nh5 {[%clk 0:02:44.8]} 12. Qb3 {[%clk 0:02:46.6]} 12...
Rxf3 {[%clk 0:02:42.8]} 13. gxf3 {[%clk 0:02:44.3]} 13... Be6 {[%clk 0:02:33.6]}
14. Ne2 {[%clk 0:02:37.3]} 14... Bxh3 {[%clk 0:02:13.3]} 15. Qxb7 {[%clk
0:02:33.9]} 15... Na5 {[%clk 0:01:56.7]} 16. Qb4 {[%clk 0:02:32.3]} 16... Rb8
{[%clk 0:01:36.2]} 17. Qc5 {[%clk 0:02:32.3]} 17... Rc8 {[%clk 0:01:25.2]} 18.
Qb4 {[%clk 0:02:31.9]} 18... Nc6 {[%clk 0:00:48.9]} 19. Qa4 {[%clk 0:02:29.5]}
19... Bxf1 {[%clk 0:00:30.2]} 20. Kxf1 {[%clk 0:02:29.2]} 20... e5 {[%clk
0:00:30.1]} 21. Bxa6 {[%clk 0:02:16.1]} 21... Rc7 {[%clk 0:00:23.6]} 22. Bd2
{[%clk 0:02:12.7]} 22... Qh4 {[%clk 0:00:21.3]} 23. Rc1 {[%clk 0:02:03.6]} 23...
Qh3+ {[%clk 0:00:20]} 24. Kg1 {[%clk 0:02:03.5]} 24... Nxd4 {[%clk 0:00:05.5]}
25. Nxd4 {[%clk 0:02:01.1]} 25... Rxc1+ {[%clk 0:00:05.3]} 26. Bxc1 {[%clk
0:02:01.3]} 26... exd4 {[%clk 0:00:06]} 27. Qe8+ {[%clk 0:01:59.3]} 27... Bf8
{[%clk 0:00:06.5]} 28. Bc8 {[%clk 0:01:46.7]} 28... Qxf3 {[%clk 0:00:04.9]} 29.
Qe6+ {[%clk 0:01:30.6]} 29... Kg7 {[%clk 0:00:03]} 30. Qe5+ {[%clk 0:01:28.5]}
30... Nf6 {[%clk 0:00:02.6]} 31. Qxd4 {[%clk 0:01:24.3]} 31... h6 {[%clk
0:00:02.1]} 32. Bf4 {[%clk 0:01:18.9]} 32... Be7 {[%clk 0:00:02]} 33. Be6 {[%clk
0:01:13]} 33... h5 {[%clk 0:00:02.3]} 34. Be5 {[%clk 0:01:11.2]} 34... h4 {[%clk
0:00:02.6]} 35. Qxh4 {[%clk 0:01:05.7]} 35... Qd1+ {[%clk 0:00:03.1]} 36. Kg2
{[%clk 0:01:05.2]} 36... Qe2 {[%clk 0:00:04]} 37. Qd4 {[%clk 0:01:00.6]} 37...
g5 {[%clk 0:00:04.1]} 38. a4 {[%clk 0:00:52.6]} 38... Kg6 {[%clk 0:00:02.5]} 39.
Bxf6 {[%clk 0:00:47.6]} 39... Bxf6 {[%clk 0:00:02.6]} 40. Qxd5 {[%clk
0:00:47.5]} 40... Qxb2 {[%clk 0:00:01.7]} 41. Bf5+ {[%clk 0:00:45.1]} 41... Kg7
{[%clk 0:00:02.3]} 42. Qd7+ {[%clk 0:00:41]} 42... Kf8 {[%clk 0:00:03]} 43. Be6
{[%clk 0:00:36.6]} 43... Be7 {[%clk 0:00:03.7]} 44. Qc8+ {[%clk 0:00:36.8]}
44... Kg7 {[%clk 0:00:03.8]} 45. Qg8+ {[%clk 0:00:37.4]} 45... Kh6 {[%clk
0:00:03.4]} 46. Bf5 {[%clk 0:00:29.7]} 46... Qg7 {[%clk 0:00:03.2]} 47. Qe6+
{[%clk 0:00:27.6]} 47... Qf6 {[%clk 0:00:03.9]} 48. Qd7 {[%clk 0:00:23.4]} 48...
Qd6 {[%clk 0:00:02.6]} 49. Qb5 {[%clk 0:00:16.2]} 49... Qc5 {[%clk 0:00:02]} 50.
Qa6+ {[%clk 0:00:14.7]} 50... Qd6 {[%clk 0:00:01.6]} 51. Qc4 {[%clk 0:00:14.5]}
51... Qe5 {[%clk 0:00:01.7]} 52. Be4 {[%clk 0:00:13.5]} 52... Qf6 {[%clk
0:00:02]} 53. a5 {[%clk 0:00:13.2]} 53... Kg7 {[%clk 0:00:02.2]} 54. a6 {[%clk
0:00:13.6]} 54... Bd8 {[%clk 0:00:01.3]} 55. a7 {[%clk 0:00:12.5]} 55... Qf4
{[%clk 0:00:02.2]} 56. a8=Q {[%clk 0:00:12]} 56... Bc7 {[%clk 0:00:03.1]} 57.
Qag8+ {[%clk 0:00:11.4]} 57... Kh6 {[%clk 0:00:04]} 58. Qce6+ {[%clk 0:00:11]}
58... Kh5 {[%clk 0:00:03.9]} 59. Qh7# {[%clk 0:00:11.5]} 1-0

[Event "Early-Titled-Tuesday-Blitz-January-30-2024"]
[Site "Chess.com"]
[Date "2024.01.30"]
[Round "11"]
[White "Jumbo"]
[Black "dropstoneDP"]
[Result "0-1"]
[WhiteElo "2941"]
[BlackElo "3060"]
[TimeControl "180+1"]
[EndTime "10:13:09 PST"]
[Termination "dropstoneDP won on time"]

1. Nf3 {[%clk 0:03:00.9]} 1... d5 {[%clk 0:02:59.1]} 2. d4 {[%clk 0:02:59.7]}
2... Nf6 {[%clk 0:02:58.6]} 3. c4 {[%clk 0:02:59.8]} 3... dxc4 {[%clk
0:02:58.3]} 4. e3 {[%clk 0:02:59.4]} 4... e6 {[%clk 0:02:57.9]} 5. Bxc4 {[%clk
0:02:59.8]} 5... c5 {[%clk 0:02:58.3]} 6. O-O {[%clk 0:02:59.8]} 6... Nc6 {[%clk
0:02:58.7]} 7. Re1 {[%clk 0:02:52.8]} 7... Be7 {[%clk 0:02:56]} 8. Nc3 {[%clk
0:02:49.5]} 8... O-O {[%clk 0:02:55.2]} 9. dxc5 {[%clk 0:02:47]} 9... Qxd1
{[%clk 0:02:53]} 10. Rxd1 {[%clk 0:02:47.9]} 10... Bxc5 {[%clk 0:02:53.3]} 11.
Bd2 {[%clk 0:02:48.5]} 11... b6 {[%clk 0:02:50.9]} 12. Rac1 {[%clk 0:02:27.8]}
12... Bb7 {[%clk 0:02:50.9]} 13. Be1 {[%clk 0:02:25.8]} 13... Rfd8 {[%clk
0:02:46.8]} 14. Rxd8+ {[%clk 0:02:25.5]} 14... Rxd8 {[%clk 0:02:47.7]} 15. Kf1
{[%clk 0:02:24.4]} 15... Kf8 {[%clk 0:02:47]} 16. Ke2 {[%clk 0:02:23.9]} 16...
h6 {[%clk 0:02:45.9]} 17. a3 {[%clk 0:02:23.8]} 17... Bd6 {[%clk 0:02:23.6]} 18.
Bb5 {[%clk 0:01:27]} 18... Ne5 {[%clk 0:02:19.7]} 19. Nxe5 {[%clk 0:01:26.5]}
19... Bxe5 {[%clk 0:02:20.6]} 20. g3 {[%clk 0:01:26.7]} 20... Nd5 {[%clk
0:02:08.3]} 21. f4 {[%clk 0:01:10.8]} 21... Nxc3+ {[%clk 0:02:01.3]} 22. Bxc3
{[%clk 0:01:10.3]} 22... Bxc3 {[%clk 0:02:01.9]} 23. Rxc3 {[%clk 0:01:11]} 23...
Rc8 {[%clk 0:02:02.2]} 24. Rxc8+ {[%clk 0:01:10.7]} 24... Bxc8 {[%clk
0:02:03.1]} 25. Kd3 {[%clk 0:01:10.7]} 25... Ke7 {[%clk 0:01:59.3]} 26. Kd4
{[%clk 0:01:11.1]} 26... Bb7 {[%clk 0:01:25]} 27. e4 {[%clk 0:01:11]} 27... Ba8
{[%clk 0:01:06.9]} 28. h4 {[%clk 0:01:10.6]} 28... Bb7 {[%clk 0:01:02.3]} 29. b4
{[%clk 0:01:09.3]} 29... Ba8 {[%clk 0:01:01.7]} 30. g4 {[%clk 0:01:02.6]} 30...
Bb7 {[%clk 0:00:59.3]} 31. g5 {[%clk 0:00:59.7]} 31... hxg5 {[%clk 0:00:39.8]}
32. hxg5 {[%clk 0:00:37.4]} 32... Ba8 {[%clk 0:00:37.7]} 33. a4 {[%clk
0:00:30.2]} 33... Bb7 {[%clk 0:00:36.8]} 34. a5 {[%clk 0:00:30]} 34... Bc8
{[%clk 0:00:21.4]} 35. Bd3 {[%clk 0:00:17.6]} 35... Bd7 {[%clk 0:00:20.6]} 36.
e5 {[%clk 0:00:16.6]} 36... Bc6 {[%clk 0:00:20.1]} 37. Bc2 {[%clk 0:00:13.7]}
37... Bb5 {[%clk 0:00:18.1]} 38. Be4 {[%clk 0:00:13.8]} 38... Bd7 {[%clk
0:00:11.9]} 39. Kc4 {[%clk 0:00:11.1]} 39... Ba4 {[%clk 0:00:11.2]} 40. Kc3
{[%clk 0:00:08.2]} 40... Kd7 {[%clk 0:00:10.8]} 41. Kd4 {[%clk 0:00:07.1]} 41...
Ke7 {[%clk 0:00:09.8]} 42. f5 {[%clk 0:00:07.5]} 42... exf5 {[%clk 0:00:08.8]}
43. Bxf5 {[%clk 0:00:08.4]} 43... Bc6 {[%clk 0:00:08.8]} 44. Bd3 {[%clk
0:00:07.8]} 44... Bb7 {[%clk 0:00:08.4]} 45. Bc4 {[%clk 0:00:07.5]} 45... Bc6
{[%clk 0:00:08.5]} 46. Bd5 {[%clk 0:00:04.7]} 46... Bb5 {[%clk 0:00:07.9]} 47.
Be4 {[%clk 0:00:04.3]} 47... Ke6 {[%clk 0:00:07.3]} 48. Bc2 {[%clk 0:00:02.7]}
48... Bc6 {[%clk 0:00:06.8]} 49. Bh7 {[%clk 0:00:03.1]} 49... g6 {[%clk
0:00:06.1]} 50. Bg8 {[%clk 0:00:03.5]} 50... Ke7 {[%clk 0:00:05.9]} 51. e6
{[%clk 0:00:04.2]} 51... Kxe6 {[%clk 0:00:06]} 52. axb6 {[%clk 0:00:03.2]} 52...
axb6 {[%clk 0:00:06.8]} 53. Bh7 {[%clk 0:00:03.2]} 53... Ke7 {[%clk 0:00:04.4]}
54. Ke5 {[%clk 0:00:02.4]} 54... Bf3 {[%clk 0:00:04.4]} 0-1

[Event "Early-Titled-Tuesday-Blitz-January-30-2024"]
[Site "Chess.com"]
[Date "2024.01.30"]
[Round "11"]
[White "Sanyura"]
[Black "VomDingJetztHer"]
[Result "1-0"]
[WhiteElo "2656"]
[BlackElo "2500"]
[TimeControl "180+1"]
[EndTime "10:13:13 PST"]
[Termination "Sanyura won by checkmate"]

1. e4 {[%clk 0:02:59.8]} 1... c5 {[%clk 0:02:59.3]} 2. Nf3 {[%clk 0:02:59.7]}
2... d6 {[%clk 0:02:59.6]} 3. d4 {[%clk 0:02:59.7]} 3... cxd4 {[%clk 0:03:00.5]}
4. Nxd4 {[%clk 0:03:00.4]} 4... Nf6 {[%clk 0:02:59.4]} 5. Nc3 {[%clk 0:03:00.3]}
5... g6 {[%clk 0:03:00]} 6. Be3 {[%clk 0:02:57.8]} 6... Bg7 {[%clk 0:03:00.5]}
7. Bc4 {[%clk 0:02:54.4]} 7... O-O {[%clk 0:02:59.7]} 8. h3 {[%clk 0:02:54.8]}
8... Nc6 {[%clk 0:02:59.1]} 9. Bb3 {[%clk 0:02:55.1]} 9... Bd7 {[%clk
0:02:58.8]} 10. O-O {[%clk 0:02:55.2]} 10... a6 {[%clk 0:02:55.9]} 11. Qe2
{[%clk 0:02:48.4]} 11... b5 {[%clk 0:02:52.8]} 12. Rad1 {[%clk 0:02:46.6]} 12...
Nxd4 {[%clk 0:02:52]} 13. Bxd4 {[%clk 0:02:46.7]} 13... Rc8 {[%clk 0:02:51.4]}
14. Rfe1 {[%clk 0:02:22.7]} 14... b4 {[%clk 0:02:28.1]} 15. Nd5 {[%clk 0:02:10]}
15... Bb5 {[%clk 0:02:25.1]} 16. Nxf6+ {[%clk 0:01:51]} 16... Bxf6 {[%clk
0:02:25.1]} 17. Qd2 {[%clk 0:01:51.4]} 17... Bxd4 {[%clk 0:02:20.9]} 18. Qxd4
{[%clk 0:01:52.3]} 18... a5 {[%clk 0:02:12.4]} 19. e5 {[%clk 0:01:52.4]} 19...
dxe5 {[%clk 0:01:59.7]} 20. Qxe5 {[%clk 0:01:47.3]} 20... Qb6 {[%clk 0:01:59.6]}
21. Qxe7 {[%clk 0:01:36.7]} 21... a4 {[%clk 0:01:59.7]} 22. Bd5 {[%clk
0:00:56.9]} 22... Rxc2 {[%clk 0:01:58.3]} 23. Re3 {[%clk 0:00:53.1]} 23... Bc4
{[%clk 0:01:50.8]} 24. Bxc4 {[%clk 0:00:45]} 24... Rxc4 {[%clk 0:01:51.7]} 25.
Rf3 {[%clk 0:00:42.1]} 25... Rc7 {[%clk 0:01:45.3]} 26. Qe4 {[%clk 0:00:37.6]}
26... b3 {[%clk 0:01:27.8]} 27. axb3 {[%clk 0:00:33.5]} 27... axb3 {[%clk
0:01:28.7]} 28. h4 {[%clk 0:00:29.5]} 28... Qb5 {[%clk 0:01:15.3]} 29. Rdd3
{[%clk 0:00:22.6]} 29... Rc1+ {[%clk 0:01:13.8]} 30. Kh2 {[%clk 0:00:22.8]}
30... Re8 {[%clk 0:01:02.5]} 31. Qf4 {[%clk 0:00:16.6]} 31... Qb8 {[%clk
0:00:50.8]} 32. Qxb8 {[%clk 0:00:15.2]} 32... Rxb8 {[%clk 0:00:51.7]} 33. Rxb3
{[%clk 0:00:15.6]} 33... Rxb3 {[%clk 0:00:50.7]} 34. Rxb3 {[%clk 0:00:16.5]}
34... h5 {[%clk 0:00:50.9]} 35. Kg3 {[%clk 0:00:13.6]} 35... Kg7 {[%clk
0:00:50.5]} 36. Kf3 {[%clk 0:00:13.2]} 36... Re1 {[%clk 0:00:48]} 37. g3 {[%clk
0:00:13.4]} 37... Kf6 {[%clk 0:00:48]} 38. Rb6+ {[%clk 0:00:13.1]} 38... Kg7
{[%clk 0:00:48.6]} 39. Kf4 {[%clk 0:00:12.5]} 39... Re2 {[%clk 0:00:48.3]} 40.
f3 {[%clk 0:00:12.7]} 40... Re1 {[%clk 0:00:48.6]} 41. b4 {[%clk 0:00:13.2]}
41... Kg8 {[%clk 0:00:48]} 42. Rb8+ {[%clk 0:00:11.3]} 42... Kg7 {[%clk
0:00:48.1]} 43. b5 {[%clk 0:00:11.7]} 43... Kf6 {[%clk 0:00:48.1]} 44. g4 {[%clk
0:00:10.8]} 44... hxg4 {[%clk 0:00:46.6]} 45. fxg4 {[%clk 0:00:11.7]} 45... Rf1+
{[%clk 0:00:46.2]} 46. Ke3 {[%clk 0:00:11.7]} 46... Rg1 {[%clk 0:00:46.2]} 47.
g5+ {[%clk 0:00:11.3]} 47... Kf5 {[%clk 0:00:45.8]} 48. b6 {[%clk 0:00:11.4]}
48... Rb1 {[%clk 0:00:41]} 49. Kd4 {[%clk 0:00:09.2]} 49... Kg4 {[%clk
0:00:40.8]} 50. b7 {[%clk 0:00:07.7]} 50... Kf5 {[%clk 0:00:28.9]} 51. Kd5
{[%clk 0:00:07.9]} 51... Rd1+ {[%clk 0:00:17.2]} 52. Kc6 {[%clk 0:00:08.2]}
52... Rc1+ {[%clk 0:00:16.5]} 53. Kd6 {[%clk 0:00:08.7]} 53... Rb1 {[%clk
0:00:11.3]} 54. Ke7 {[%clk 0:00:08.4]} 54... Rb2 {[%clk 0:00:02.7]} 55. Kxf7
{[%clk 0:00:08.8]} 55... Rb1 {[%clk 0:00:03]} 56. Kg7 {[%clk 0:00:09.3]} 56...
Rb2 {[%clk 0:00:02.7]} 57. Rf8+ {[%clk 0:00:09.1]} 57... Kg4 {[%clk 0:00:02.7]}
58. b8=Q {[%clk 0:00:10]} 58... Re2 {[%clk 0:00:02.1]} 59. Qc8+ {[%clk
0:00:10.2]} 59... Kg3 {[%clk 0:00:02.1]} 60. Qc3+ {[%clk 0:00:09.7]} 60... Kg2
{[%clk 0:00:02]} 61. Qf3+ {[%clk 0:00:10.2]} 61... Kg1 {[%clk 0:00:02]} 62. Qxe2
{[%clk 0:00:10.7]} 62... Kh1 {[%clk 0:00:02.7]} 63. Rf1# {[%clk 0:00:11.1]} 1-0

[Event "Early-Titled-Tuesday-Blitz-January-30-2024"]
[Site "Chess.com"]
[Date "2024.01.30"]
[Round "11"]
[White "PavelShkapenko"]
[Black "jcibarra"]
[Result "0-1"]
[WhiteElo "2764"]
[BlackElo "2884"]
[TimeControl "180+1"]
[EndTime "10:13:14 PST"]
[Termination "jcibarra won by resignation"]

1. e4 {[%clk 0:03:00.9]} 1... c5 {[%clk 0:02:59.9]} 2. c3 {[%clk 0:03:00.6]}
2... Nf6 {[%clk 0:02:59.7]} 3. e5 {[%clk 0:03:01]} 3... Nd5 {[%clk 0:03:00.4]}
4. d4 {[%clk 0:03:01.6]} 4... cxd4 {[%clk 0:03:01.1]} 5. cxd4 {[%clk 0:03:02.1]}
5... d6 {[%clk 0:03:01.2]} 6. Nf3 {[%clk 0:03:01.8]} 6... Nc6 {[%clk 0:03:01.1]}
7. Bc4 {[%clk 0:03:01.9]} 7... dxe5 {[%clk 0:02:58.5]} 8. Nxe5 {[%clk
0:03:01.5]} 8... e6 {[%clk 0:02:58.3]} 9. O-O {[%clk 0:03:01]} 9... Bd6 {[%clk
0:02:58.3]} 10. Bxd5 {[%clk 0:02:59.4]} 10... exd5 {[%clk 0:02:56.5]} 11. Bf4
{[%clk 0:02:56.9]} 11... Ne7 {[%clk 0:02:41.2]} 12. Nc3 {[%clk 0:02:43.2]} 12...
O-O {[%clk 0:02:37.1]} 13. Nd3 {[%clk 0:02:42.8]} 13... Bf5 {[%clk 0:02:27.2]}
14. Bxd6 {[%clk 0:02:41.5]} 14... Qxd6 {[%clk 0:02:28.1]} 15. Re1 {[%clk
0:02:34.7]} 15... Nc6 {[%clk 0:02:25.5]} 16. Nb5 {[%clk 0:02:08.6]} 16... Qd8
{[%clk 0:02:21.7]} 17. a3 {[%clk 0:01:29.7]} 17... Qb6 {[%clk 0:02:12]} 18. Nc3
{[%clk 0:01:20.9]} 18... Rad8 {[%clk 0:02:02.9]} 19. Nf4 {[%clk 0:01:01.1]}
19... Qxb2 {[%clk 0:01:48.4]} 20. Nfxd5 {[%clk 0:00:59.4]} 20... Rd7 {[%clk
0:01:35.7]} 21. Ra2 {[%clk 0:00:57.4]} 21... Qxa2 {[%clk 0:01:25.4]} 22. Nf6+
{[%clk 0:00:54.4]} 22... gxf6 {[%clk 0:01:22.1]} 23. Nxa2 {[%clk 0:00:54.8]}
23... Nxd4 {[%clk 0:01:21]} 24. Qh5 {[%clk 0:00:41.3]} 24... Bg6 {[%clk
0:01:18.4]} 25. Qh4 {[%clk 0:00:40]} 25... Kg7 {[%clk 0:01:12.4]} 26. Nc3 {[%clk
0:00:35.4]} 26... Rc8 {[%clk 0:01:12.5]} 27. Ne4 {[%clk 0:00:30.7]} 27... Rc6
{[%clk 0:01:11.6]} 28. f3 {[%clk 0:00:25.7]} 28... Re6 {[%clk 0:00:58]} 29. Nc5
{[%clk 0:00:19.8]} 29... Rxe1+ {[%clk 0:00:40.8]} 30. Qxe1 {[%clk 0:00:20.7]}
30... Rc7 {[%clk 0:00:41.3]} 31. Qb4 {[%clk 0:00:17.5]} 31... Nc2 {[%clk
0:00:32.2]} 32. Qb5 {[%clk 0:00:17.3]} 32... b6 {[%clk 0:00:32.1]} 33. Na6
{[%clk 0:00:13.8]} 33... Nd4 {[%clk 0:00:26.5]} 34. Qb2 {[%clk 0:00:12.8]} 34...
Rc1+ {[%clk 0:00:24.5]} 35. Qxc1 {[%clk 0:00:11.3]} 35... Ne2+ {[%clk
0:00:22.3]} 36. Kf2 {[%clk 0:00:12.2]} 36... Nxc1 {[%clk 0:00:22.8]} 37. Ke3
{[%clk 0:00:13]} 37... Nb3 {[%clk 0:00:20.8]} 38. Nb4 {[%clk 0:00:13.3]} 38...
Nc5 {[%clk 0:00:17.3]} 39. Nc6 {[%clk 0:00:13.4]} 39... a5 {[%clk 0:00:16.9]}
40. Kd4 {[%clk 0:00:13.5]} 40... Bd3 {[%clk 0:00:15]} 41. Ne7 {[%clk 0:00:13.3]}
41... Bf1 {[%clk 0:00:14.7]} 42. g3 {[%clk 0:00:13.2]} 42... Bg2 {[%clk
0:00:14.9]} 43. Nc8 {[%clk 0:00:11.3]} 43... Nd7 {[%clk 0:00:12.1]} 44. f4
{[%clk 0:00:11.8]} 44... Kf8 {[%clk 0:00:11.9]} 45. Nd6 {[%clk 0:00:12]} 45...
Bc6 {[%clk 0:00:11.5]} 46. Nf5 {[%clk 0:00:11.6]} 46... Nc5 {[%clk 0:00:11.1]}
47. Nd6 {[%clk 0:00:11.1]} 47... Ne6+ {[%clk 0:00:11.1]} 48. Kc4 {[%clk
0:00:10.7]} 48... Ke7 {[%clk 0:00:11.3]} 49. Nc8+ {[%clk 0:00:10.8]} 49... Kd8
{[%clk 0:00:09.3]} 50. Nxb6 {[%clk 0:00:10.7]} 50... Kc7 {[%clk 0:00:09.9]} 51.
Nd5+ {[%clk 0:00:10.3]} 51... Bxd5+ {[%clk 0:00:10.3]} 52. Kxd5 {[%clk
0:00:11.2]} 52... Kd7 {[%clk 0:00:10.2]} 53. h3 {[%clk 0:00:09.9]} 53... Kc7
{[%clk 0:00:07.1]} 54. f5 {[%clk 0:00:08.9]} 54... Ng5 {[%clk 0:00:06.1]} 55. h4
{[%clk 0:00:08.8]} 55... Nf3 {[%clk 0:00:06.7]} 56. Kc5 {[%clk 0:00:08.9]} 56...
Nd2 {[%clk 0:00:06.5]} 57. Kb5 {[%clk 0:00:08.7]} 57... Ne4 {[%clk 0:00:07.1]}
58. g4 {[%clk 0:00:09.3]} 58... Nf2 {[%clk 0:00:07.1]} 59. g5 {[%clk 0:00:09.8]}
59... fxg5 {[%clk 0:00:07.8]} 60. hxg5 {[%clk 0:00:10.1]} 60... Ne4 {[%clk
0:00:08.5]} 61. g6 {[%clk 0:00:09.9]} 61... fxg6 {[%clk 0:00:07.5]} 62. fxg6
{[%clk 0:00:10.8]} 62... hxg6 {[%clk 0:00:08.1]} 63. Kxa5 {[%clk 0:00:11.2]}
63... g5 {[%clk 0:00:08.8]} 64. Kb5 {[%clk 0:00:11.2]} 64... g4 {[%clk
0:00:09.5]} 65. Kc4 {[%clk 0:00:12.1]} 65... g3 {[%clk 0:00:10.2]} 66. Kd3
{[%clk 0:00:13]} 66... g2 {[%clk 0:00:10.9]} 67. Kxe4 {[%clk 0:00:13.8]} 67...
g1=Q {[%clk 0:00:11.6]} 0-1